fUSD/lending_fUSD_20250111
["ID","MTS","AMOUNT","RATE_DAILY","PERIOD"]
[348578910,1736633445547,-500.0,0.00010821,2]
[348578911,1736633445557,-500.0,0.00010821,2]
[348578912,1736633445567,-557.24,0.00010821,2]
[348578913,1736633445577,-500.0,0.00010821,2]
[348578914,1736633445587,-573.05,0.00010821,2]
[348578915,1736633445596,-500.0,0.00010821,2]
[348578916,1736633445609,-640.17,0.00010821,2]
[348578917,1736633445618,-816.98,0.00010821,2]
[348578918,1736633445628,-1578.5817947,0.00010821,2]
[348578919,1736633445886,-705.7996043,0.00010821,2]
[348578920,1736633445898,-593.999997,0.00010821,2]
[348578921,1736633445909,-56.538604,0.00010821,2]
[348578922,1736633445919,-500.0,0.00010821,2]
[348578923,1736633445929,-264.71050259,0.00010821,2]
[348578924,1736633445940,-235.28949741,0.00010821,2]
[348578925,1736633445950,-165.49050259,0.00010821,2]
[348578926,1736633445961,-334.50949741,0.00010821,2]
[348578927,1736633445971,-704.07,0.00010821,2]
[348578928,1736633445980,-151.0,0.00010821,2]
[348578929,1736633445989,-500.0,0.00010821,2]
[348578930,1736633446000,-538.81,0.00010821,2]
[348578931,1736633446009,-500.0,0.00010821,2]
[348578933,1736633446018,-500.0,0.00010821,2]
[348578934,1736633446028,-203.18095789,0.00010833,2]
[348578936,1736633446037,-846.13720454,0.0001089,2]
[348578938,1736633446050,-3112.21826223,0.0001089,2]
[348578939,1736633446063,-1900.0,0.0001089,2]
[348578940,1736633446074,-255.97559429,0.0001089,2]
[348578941,1736633446087,-1628.49858951,0.0001089,2]
[348578942,1736633446097,-4517.9884,0.00010899,2]
[348578943,1736633446107,-1767.7526,0.00010899,2]
[348578944,1736633446116,-6436.89956448,0.00010972,2]
[348578945,1736633446126,-6436.89956448,0.00010976,2]
[348578946,1736633446135,-6436.89956448,0.00010977,2]
[348578947,1736633446145,-200.0,0.0001098,2]
[348578948,1736633446154,-999.0,0.00010981,2]
[348578949,1736633446163,-6436.89956448,0.00010981,2]
[348578950,1736633446173,-1896.55953766,0.00010982,2]
[348578951,1736633446184,-4540.34002682,0.00010982,2]
[348578952,1736633446194,-356.69,0.00010986,2]
[348578953,1736633446204,-500.0,0.00010986,2]
[348578954,1736633446214,-200.0,0.00010992,2]
[348578955,1736633446223,-500.0,0.00010993,2]
[348578956,1736633446233,-500.0,0.00010993,2]
[348578957,1736633446244,-200.0,0.00010993,2]
[348578958,1736633446254,-12880.51503591,0.00010994,2]
[348578959,1736633446273,-243.02396409,0.00010994,2]
[348578960,1736633446283,-200.0,0.00010994,2]
[348578961,1736633446292,-7079.04070885,0.00010999,2]
[348578962,1736633446304,-656.77032132,0.00010999,2]
[348578996,1736633446740,-500.0,9.996e-05,2]
[348578998,1736633446750,-500.0,9.997e-05,2]
[348579000,1736633446760,-500.0,0.00010546,2]
[348579002,1736633446769,-500.0,0.0001082,2]
[348579004,1736633446778,-7.72,0.0001082,2]
[348579006,1736633446790,-492.28,0.0001082,2]
[348579008,1736633446799,-818.58673294,0.00010999,2]
[348579011,1736633446810,-252.90102083,0.00010999,2]
[348579013,1736633446822,-4755.15039999,0.00010999,2]
[348579015,1736633446833,-46242.72166986,0.00010999,2]
[348579017,1736633446843,-151.0,0.00010999,2]
[348579019,1736633446851,-151.0,0.00010999,2]
[348579021,1736633446860,-151.0,0.00010999,2]
[348579023,1736633446870,-151.0,0.00010999,2]
[348579025,1736633446880,-151.0,0.00010999,2]
[348579027,1736633446889,-151.0,0.00010999,2]
[348579029,1736633446899,-2424.35841876,0.00010999,2]
[348579031,1736633446910,-575.64158124,0.00010999,2]
[348579033,1736633446919,-6289.35844876,0.00010999,2]
[348579035,1736633446932,-147.54111572,0.00010999,2]
[348579037,1736633446941,-200.0,0.00011,2]
[348579039,1736633446950,-550.0,0.00011,2]
[348579041,1736633446959,-5024.0,0.00011,2]
[348579043,1736633446968,-4130.15587548,0.00011,2]
[348579049,1736633447020,-869.84412452,0.00011,2]
[348579051,1736633447029,-1273.51381483,0.00011,2]
[348579053,1736633447040,-3726.48618517,0.00011,2]
[348579055,1736633447049,-1000.0,0.00011,2]
[348579057,1736633447058,-213.28757252,0.00011,2]
[348579060,1736633447074,-688.92272748,0.00011,2]
[348579062,1736633447083,-500.0,0.00011062,2]
[348579064,1736633447093,-547.32728002,0.00011062,2]
[348579066,1736633447103,-3800.0,0.00011062,2]
[348579068,1736633447114,-381.355,0.00011062,2]
[348579071,1736633447125,-1374.46951998,0.00011062,2]
[348579073,1736633447135,-1000.0,0.00011062,2]
[348579074,1736633447144,-166.01,0.00011062,2]
[348579076,1736633447153,-4070.26063011,0.00011079,2]
[348579079,1736633447169,-1802.40447724,0.00011079,2]
[348579081,1736633447178,-500.0,0.00011092,2]
[348579083,1736633447187,-500.0,0.00011093,2]
[348579085,1736633447197,-500.0,0.00011093,2]
[348579087,1736633447207,-500.0,0.00011093,2]
[348579089,1736633447216,-500.0,0.00011093,2]
[348579091,1736633447225,-500.0,0.00011093,2]
[348579093,1736633447234,-500.0,0.00011093,2]
[348579095,1736633447243,-500.0,0.00011093,2]
[348579097,1736633447252,-500.0,0.00011093,2]
[348579099,1736633447262,-500.0,0.00011093,2]
[348579101,1736633447271,-500.0,0.00011093,2]
[348579103,1736633447280,-500.0,0.00011093,2]
[348579105,1736633447289,-623.67168639,0.00011093,2]
[348579107,1736633447298,-45.48958761,0.00011093,2]
[348579109,1736633447310,-454.51041239,0.00011093,2]
[348579111,1736633447319,-500.0,0.00011093,2]
[348579113,1736633447328,-766.51,0.00011093,2]
[348579115,1736633447337,-500.0,0.00011093,2]
[348579117,1736633447346,-219.44958761,0.00011093,2]
[348579132,1736633447475,-280.55041239,0.00011093,2]
[348579134,1736633447484,-337.50084877,0.00011093,2]
[348579136,1736633447493,-678.83,0.00011093,2]
[348579138,1736633447502,-418.11873884,0.00011093,2]
[348579140,1736633447513,-81.88126116,0.00011093,2]
[348579142,1736633447523,-500.0,0.00011093,2]
[348579144,1736633447533,-500.0,0.00011093,2]
[348579146,1736633447542,-868.11873884,0.00011093,2]
[348579148,1736633447553,-717.19126116,0.00011093,2]
[348579150,1736633447562,-631.84,0.00011093,2]
[348579152,1736633447571,-500.0,0.00011093,2]
[348579154,1736633447581,-1100.84,0.00011093,2]
[348579156,1736633447590,-768.46,0.00011093,2]
[348579158,1736633447599,-396.59,0.00011093,2]
[348579160,1736633447612,-1098.9678738,0.00011093,2]
[348579162,1736633447623,-1573.1121262,0.00011093,2]
[348579164,1736633447632,-613.05,0.00011093,2]
[348579166,1736633447641,-500.0,0.00011093,2]
[348579168,1736633447653,-500.0,0.00011093,2]
[348579170,1736633447662,-1615.0,0.00011093,2]
[348579172,1736633447671,-500.0,0.00011093,2]
[348579174,1736633447682,-799.88,0.00011093,2]
[348579176,1736633447691,-1002.84,0.00011093,2]
[348579178,1736633447700,-1037.8,0.00011093,2]
[348579180,1736633447710,-1006.92,0.00011093,2]
[348579182,1736633447719,-1661.15,0.00011093,2]
[348579184,1736633447729,-500.0,0.00011093,2]
[348579186,1736633447738,-500.0,0.00011093,2]
[348579188,1736633447747,-500.0,0.00011093,2]
[348579190,1736633447756,-500.0,0.00011093,2]
[348579192,1736633447765,-1041.02,0.00011093,2]
[348579194,1736633447775,-1343.28,0.00011093,2]
[348579196,1736633447784,-919.31,0.00011093,2]
[348579198,1736633447793,-500.0,0.00011093,2]
[348579200,1736633447802,-510.29,0.00011093,2]
[348579202,1736633447811,-153.603193,0.00011093,2]
[348579204,1736633447820,-1738.21,0.00011093,2]
[348579206,1736633447829,-695.24,0.00011093,2]
[348579208,1736633447839,-887.63,0.00011093,2]
[348579210,1736633447848,-596.13,0.00011093,2]
[348579212,1736633447857,-546.71,0.00011093,2]
[348579214,1736633447866,-500.0,0.00011093,2]
[348579216,1736633447875,-534.98,0.00011093,2]
[348579218,1736633447884,-1249.02,0.00011093,2]
[348579220,1736633447893,-964.0,0.00011093,2]
[348579221,1736633447902,-500.0,0.00011093,2]
[348579223,1736633447911,-500.0,0.00011093,2]
[348579225,1736633447920,-500.0,0.00011093,2]
[348579227,1736633447930,-500.0,0.00011093,2]
[348579229,1736633447939,-532.52,0.00011093,2]
[348579231,1736633447949,-500.0,0.00011093,2]
[348579233,1736633447958,-500.0,0.00011094,2]
[348579235,1736633447967,-500.0,0.00011094,2]
[348579237,1736633447976,-500.0,0.00011094,2]
[348579239,1736633447985,-1154.08,0.00011094,2]
[348579241,1736633447994,-530.94,0.00011094,2]
[348579243,1736633448003,-500.0,0.00011094,2]
[348579245,1736633448012,-500.0,0.00011094,2]
[348579247,1736633448021,-500.0,0.00011094,2]
[348579249,1736633448030,-654.22,0.00011094,2]
[348579251,1736633448039,-500.0,0.00011094,2]
[348579253,1736633448048,-1149.21,0.00011094,2]
[348579255,1736633448057,-502.6,0.00011094,2]
[348579257,1736633448067,-856.82,0.00011094,2]
[348579259,1736633448076,-500.0,0.00011094,2]
[348579261,1736633448085,-500.0,0.00011094,2]
[348579263,1736633448094,-500.0,0.00011094,2]
[348579265,1736633448103,-500.0,0.00011094,2]
[348579267,1736633448112,-500.0,0.00011095,2]
[348579268,1736633448121,-259.71,0.00011095,2]
[348579270,1736633448131,-557.24,0.00011095,2]
[348579272,1736633448141,-500.0,0.00011095,2]
[348579274,1736633448149,-573.05,0.00011095,2]
[348579276,1736633448159,-500.0,0.00011095,2]
[348579278,1736633448168,-640.17,0.00011095,2]
[348579280,1736633448178,-816.98,0.00011095,2]
[348579282,1736633448187,-500.0,0.00011095,2]
[348579284,1736633448196,-500.0,0.00011095,2]
[348579286,1736633448206,-2934.92,0.00011095,2]
[348579288,1736633448215,-500.0,0.00011095,2]
[348579290,1736633448224,-541.89,0.00011095,2]
[348579292,1736633448234,-500.0,0.00011095,2]
[348579294,1736633448243,-704.07,0.00011095,2]
[348579296,1736633448253,-500.0,0.00011095,2]
[348579299,1736633448263,-538.81,0.00011095,2]
[348579301,1736633448273,-500.0,0.00011095,2]
[348579303,1736633448282,-500.0,0.00011095,2]
[348579304,1736633448291,-1000.0,0.000111,2]
[348579306,1736633448301,-500.0,0.00011161,2]
[348579308,1736633448310,-500.0,0.00011161,2]
[348579311,1736633448320,-10580.17666738,0.00011162,5]
[348579313,1736633448332,-2103.19560027,0.00011162,5]
[348579315,1736633448343,-2021.28832836,0.00011162,5]
[348579317,1736633448355,-1152.9712,0.00011162,5]
[348579319,1736633448368,-388.5620595,0.00011162,5]
[348579320,1736633448379,-3268.9080385,0.00011162,5]
[348579321,1736633448390,-2695.45171749,0.00011162,5]
[348579322,1736633448402,-4843.8,0.00011162,5]
[348579323,1736633448413,-1320.05848825,0.00011162,5]
[348579348,1736633448719,-500.0,9.997e-05,2]
[348579350,1736633448730,-24917.28770986,0.00011162,5]
[348579353,1736633448742,-34370.4385342,0.00011162,5]
[348579356,1736633448763,-10038.80165619,0.00011162,5]
[348579358,1736633448772,-151.0,0.00011162,2]
[348579360,1736633448782,-151.0,0.00011162,2]
[348579362,1736633448792,-151.0,0.00011162,2]
[348579364,1736633448802,-151.0,0.00011162,2]
[348579366,1736633448811,-151.0,0.00011162,2]
[348579368,1736633448820,-151.0,0.00011162,2]
[348579370,1736633448830,-500.0,0.00011204,2]
[348579372,1736633448839,-772.01,0.00011342,2]
[348579374,1736633448849,-437.83,0.00011342,2]
[348579376,1736633448858,-435.85,0.00011342,2]
[348579378,1736633448868,-437.9,0.00011342,2]
[348579380,1736633448877,-500.0,0.00011366,2]
[348579382,1736633448886,-500.0,0.00011367,2]
[348579384,1736633448895,-500.0,0.00011367,2]
[348579386,1736633448905,-500.0,0.00011367,2]
[348579388,1736633448915,-500.0,0.00011367,2]
[348579390,1736633448924,-500.0,0.00011367,2]
[348579392,1736633448934,-500.0,0.00011367,2]
[348579394,1736633448944,-500.0,0.00011367,2]
[348579396,1736633448953,-500.0,0.00011367,2]
[348579398,1736633448963,-500.0,0.00011367,2]
[348579400,1736633448973,-500.0,0.00011367,2]
[348579402,1736633448982,-500.0,0.00011367,2]
[348579404,1736633448992,-481.75,0.00011367,2]
[348579406,1736633449001,-500.0,0.00011367,2]
[348579408,1736633449011,-766.51,0.00011367,2]
[348579410,1736633449020,-500.0,0.00011367,2]
[348579412,1736633449029,-500.0,0.00011367,2]
[348579414,1736633449039,-678.83,0.00011367,2]
[348579416,1736633449049,-500.0,0.00011367,2]
[348579418,1736633449059,-500.0,0.00011367,2]
[348579420,1736633449069,-500.0,0.00011367,2]
[348579422,1736633449079,-631.84,0.00011367,2]
[348579424,1736633449090,-500.0,0.00011367,2]
[348579427,1736633449099,-1100.84,0.00011367,2]
[348579429,1736633449109,-768.46,0.00011367,2]
[348579431,1736633449119,-2672.08,0.00011367,2]
[348579433,1736633449128,-613.05,0.00011367,2]
[348579435,1736633449137,-500.0,0.00011367,2]
[348579437,1736633449147,-500.0,0.00011367,2]
[348579439,1736633449156,-1615.0,0.00011367,2]
[348579441,1736633449166,-500.0,0.00011367,2]
[348579442,1736633449176,-799.88,0.00011367,2]
[348579445,1736633449186,-1002.84,0.00011367,2]
[348579447,1736633449195,-1037.8,0.00011367,2]
[348579449,1736633449205,-1006.92,0.00011367,2]
[348579451,1736633449214,-1661.15,0.00011367,2]
[348579453,1736633449224,-500.0,0.00011367,2]
[348579454,1736633449233,-500.0,0.00011367,2]
[348579457,1736633449243,-500.0,0.00011367,2]
[348579459,1736633449253,-300.21,0.00011367,2]
[348579461,1736633449263,-1041.02,0.00011367,2]
[348579463,1736633449272,-1343.28,0.00011367,2]
[348579465,1736633449282,-919.31,0.00011367,2]
[348579467,1736633449291,-500.0,0.00011367,2]
[348579469,1736633449300,-510.29,0.00011367,2]
[348579471,1736633449310,-153.603193,0.00011367,2]
[348579473,1736633449319,-1738.21,0.00011367,2]
[348579474,1736633449329,-695.24,0.00011367,2]
[348579476,1736633449339,-887.63,0.00011367,2]
[348579479,1736633449348,-596.13,0.00011367,2]
[348579481,1736633449358,-546.71,0.00011367,2]
[348579483,1736633449367,-500.0,0.00011367,2]
[348579485,1736633449376,-534.98,0.00011367,2]
[348579487,1736633449386,-151.996528,0.00011367,2]
[348579489,1736633449396,-1249.02,0.00011367,2]
[348579491,1736633449405,-964.0,0.00011367,2]
[348579493,1736633449415,-500.0,0.00011367,2]
[348579495,1736633449426,-500.0,0.00011367,2]
[348579497,1736633449436,-586.60302454,0.00011367,2]
[348579499,1736633449446,-500.0,0.00011367,2]
[348579501,1736633449456,-532.52,0.00011367,2]
[348579502,1736633449465,-500.0,0.00011367,2]
[348579505,1736633449475,-500.0,0.00011368,2]
[348579507,1736633449484,-500.0,0.00011368,2]
[348579509,1736633449494,-500.0,0.00011368,2]
[348579511,1736633449504,-1154.08,0.00011368,2]
[348579513,1736633449513,-530.94,0.00011368,2]
[348579515,1736633449523,-500.0,0.00011368,2]
[348579517,1736633449532,-397.88,0.00011368,2]
[348579519,1736633449541,-500.0,0.00011368,2]
[348579521,1736633449551,-654.22,0.00011368,2]
[348579523,1736633449560,-500.0,0.00011368,2]
[348579525,1736633449569,-1149.21,0.00011368,2]
[348579527,1736633449579,-856.82,0.00011368,2]
[348579529,1736633449588,-500.0,0.00011368,2]
[348579531,1736633449598,-500.0,0.00011368,2]
[348579533,1736633449613,-500.0,0.00011368,2]
[348579535,1736633449623,-500.0,0.00011368,2]
[348579537,1736633449632,-500.0,0.00011369,2]
[348579539,1736633449643,-557.24,0.00011369,2]
[348579541,1736633449653,-500.0,0.00011369,2]
[348579543,1736633449662,-573.05,0.00011369,2]
[348579545,1736633449672,-500.0,0.00011369,2]
[348579547,1736633449684,-640.17,0.00011369,2]
[348579549,1736633449693,-816.98,0.00011369,2]
[348579551,1736633449703,-2934.92,0.00011369,2]
[348579553,1736633449713,-500.0,0.00011369,2]
[348579555,1736633449722,-186.8,0.00011369,2]
[348579557,1736633449731,-704.07,0.00011369,2]
[348579559,1736633449741,-500.0,0.00011369,2]
[348579561,1736633449750,-538.81,0.00011369,2]
[348579563,1736633449760,-576.43,0.00011369,2]
[348579565,1736633449770,-500.0,0.00011369,2]
[348579567,1736633449780,-500.0,0.00011397,2]
[348579569,1736633449789,-200.0,0.000114,2]
[348579571,1736633449799,-150.0,0.00011441,2]
[348579573,1736633449808,-150.0,0.000115,2]
[348579575,1736633449817,-28041.20691739,0.00011542,2]
[348579577,1736633449830,-948.07299103,0.00011542,2]
[348579579,1736633449842,-942.50239158,0.00011542,2]
[348579581,1736633449851,-498.48,0.00011596,2]
[348579583,1736633449861,-1000.0,0.000116,2]
[348579585,1736633449870,-500.0,0.0001164,2]
[348579587,1736633449880,-500.0,0.00011641,2]
[348579589,1736633449890,-500.0,0.00011641,2]
[348579591,1736633449899,-500.0,0.00011641,2]
[348579594,1736633449909,-500.0,0.00011641,2]
[348579596,1736633449919,-500.0,0.00011641,2]
[348579598,1736633449929,-500.0,0.00011641,2]
[348579600,1736633449938,-500.0,0.00011641,2]
[348579602,1736633449948,-500.0,0.00011641,2]
[348579604,1736633449957,-500.0,0.00011641,2]
[348579606,1736633449967,-500.0,0.00011641,2]
[348579608,1736633449976,-500.0,0.00011641,2]
[348579610,1736633449986,-500.0,0.00011641,2]
[348579612,1736633449996,-766.51,0.00011641,2]
[348579614,1736633450005,-572.33816122,0.00011641,2]
[348579616,1736633450015,-500.0,0.00011641,2]
[348579618,1736633450024,-678.83,0.00011641,2]
[348579620,1736633450034,-341.28,0.00011641,2]
[348579622,1736633450043,-500.0,0.00011641,2]
[348579624,1736633450053,-500.0,0.00011641,2]
[348579626,1736633450063,-196.065666,0.00011641,2]
[348579628,1736633450072,-631.84,0.00011641,2]
[348579630,1736633450082,-500.0,0.00011641,2]
[348579632,1736633450091,-1100.84,0.00011641,2]
[348579634,1736633450101,-768.46,0.00011641,2]
[348579636,1736633450110,-2672.08,0.00011641,2]
[348579638,1736633450120,-613.05,0.00011641,2]
[348579640,1736633450129,-500.0,0.00011641,2]
[348579642,1736633450139,-500.0,0.00011641,2]
[348579644,1736633450148,-1615.0,0.00011641,2]
[348579646,1736633450157,-500.0,0.00011641,2]
[348579648,1736633450167,-799.88,0.00011641,2]
[348579650,1736633450177,-1002.84,0.00011641,2]
[348579652,1736633450187,-1037.8,0.00011641,2]
[348579655,1736633450197,-1006.92,0.00011641,2]
[348579657,1736633450206,-1661.15,0.00011641,2]
[348579659,1736633450216,-655.83,0.00011641,2]
[348579661,1736633450226,-500.0,0.00011641,2]
[348579663,1736633450236,-500.0,0.00011641,2]
[348579665,1736633450245,-500.0,0.00011641,2]
[348579667,1736633450254,-1041.02,0.00011641,2]
[348579669,1736633450263,-1343.28,0.00011641,2]
[348579671,1736633450273,-919.31,0.00011641,2]
[348579673,1736633450282,-500.0,0.00011641,2]
[348579675,1736633450292,-510.29,0.00011641,2]
[348579677,1736633450301,-153.603193,0.00011641,2]
[348579679,1736633450311,-1738.21,0.00011641,2]
[348579681,1736633450320,-695.24,0.00011641,2]
[348579683,1736633450330,-887.63,0.00011641,2]
[348579685,1736633450339,-596.13,0.00011641,2]
[348579687,1736633450349,-546.71,0.00011641,2]
[348579689,1736633450358,-500.0,0.00011641,2]
[348579691,1736633450368,-534.98,0.00011641,2]
[348579693,1736633450378,-151.996528,0.00011641,2]
[348579695,1736633450388,-151.0,0.00011641,2]
[348579697,1736633450397,-1249.02,0.00011641,2]
[348579699,1736633450406,-151.0,0.00011641,2]
[348579701,1736633450416,-964.0,0.00011641,2]
[348579703,1736633450425,-500.0,0.00011641,2]
[348579705,1736633450435,-500.0,0.00011641,2]
[348579707,1736633450445,-500.0,0.00011641,2]
[348579709,1736633450455,-532.52,0.00011641,2]
[348579711,1736633450465,-500.0,0.00011641,2]
[348579713,1736633450474,-500.0,0.00011642,2]
[348579715,1736633450484,-500.0,0.00011642,2]
[348579717,1736633450494,-500.0,0.00011642,2]
[348579719,1736633450504,-1154.08,0.00011642,2]
[348579721,1736633450513,-530.94,0.00011642,2]
[348579723,1736633450523,-500.0,0.00011642,2]
[348579725,1736633450534,-500.0,0.00011642,2]
[348579727,1736633450543,-654.22,0.00011642,2]
[348579730,1736633450553,-500.0,0.00011642,2]
[348579732,1736633450563,-1149.21,0.00011642,2]
[348579733,1736633450574,-856.82,0.00011642,2]
[348579735,1736633450584,-500.0,0.00011642,2]
[348579738,1736633450595,-500.0,0.00011642,2]
[348579740,1736633450608,-500.0,0.00011642,2]
[348579742,1736633450620,-500.0,0.00011642,2]
[348579744,1736633450630,-500.0,0.00011643,2]
[348579746,1736633450640,-557.24,0.00011643,2]
[348579747,1736633450651,-500.0,0.00011643,2]
[348579750,1736633450661,-573.05,0.00011643,2]
[348579752,1736633450671,-500.0,0.00011643,2]
[348579754,1736633450681,-640.17,0.00011643,2]
[348579756,1736633450691,-816.98,0.00011643,2]
[348579758,1736633450702,-151.0,0.00011643,2]
[348579760,1736633450711,-2934.92,0.00011643,2]
[348579762,1736633450722,-151.0,0.00011643,2]
[348579764,1736633450732,-500.0,0.00011643,2]
[348579766,1736633450742,-704.07,0.00011643,2]
[348579768,1736633450752,-500.0,0.00011643,2]
[348579770,1736633450762,-538.81,0.00011643,2]
[348579772,1736633450772,-500.0,0.00011643,2]
[348579774,1736633450782,-1000.0,0.00011758,2]
[348579776,1736633450792,-151.0,0.000118,2]
[348579778,1736633450802,-203.18095789,0.00011867,2]
[348579792,1736633450991,-500.0,0.00011914,2]
[348579793,1736633451007,-500.0,0.00011915,2]
[348579794,1736633451017,-500.0,0.00011915,2]
[348579796,1736633451027,-500.0,0.00011915,2]
[348579798,1736633451036,-500.0,0.00011915,2]
[348579800,1736633451045,-500.0,0.00011915,2]
[348579802,1736633451055,-500.0,0.00011915,2]
[348579804,1736633451064,-500.0,0.00011915,2]
[348579805,1736633451073,-500.0,0.00011915,2]
[348579807,1736633451083,-500.0,0.00011915,2]
[348579810,1736633451092,-500.0,0.00011915,2]
[348579812,1736633451102,-500.0,0.00011915,2]
[348579814,1736633451111,-500.0,0.00011915,2]
[348579815,1736633451120,-766.51,0.00011915,2]
[348579818,1736633451130,-500.0,0.00011915,2]
[348579820,1736633451139,-678.83,0.00011915,2]
[348579822,1736633451148,-500.0,0.00011915,2]
[348579824,1736633451158,-500.0,0.00011915,2]
[348579826,1736633451168,-631.84,0.00011915,2]
[348579828,1736633451178,-500.0,0.00011915,2]
[348579830,1736633451187,-1100.84,0.00011915,2]
[348579832,1736633451197,-768.46,0.00011915,2]
[348579834,1736633451207,-2672.08,0.00011915,2]
[348579836,1736633451216,-613.05,0.00011915,2]
[348579838,1736633451226,-496.59998909,0.00011915,2]
[348579840,1736633451235,-500.0,0.00011915,2]
[348579842,1736633451244,-1615.0,0.00011915,2]
[348579844,1736633451253,-500.0,0.00011915,2]
[348579846,1736633451263,-799.88,0.00011915,2]
[348579848,1736633451272,-1002.84,0.00011915,2]
[348579850,1736633451282,-1037.8,0.00011915,2]
[348579852,1736633451291,-1006.92,0.00011915,2]
[348579854,1736633451301,-1661.15,0.00011915,2]
[348579856,1736633451310,-655.83,0.00011915,2]
[348579858,1736633451320,-500.0,0.00011915,2]
[348579860,1736633451329,-500.0,0.00011915,2]
[348579862,1736633451339,-500.0,0.00011915,2]
[348579864,1736633451348,-1401.68,0.00011915,2]
[348579866,1736633451358,-1041.02,0.00011915,2]
[348579868,1736633451367,-1343.28,0.00011915,2]
[348579870,1736633451377,-919.31,0.00011915,2]
[348579872,1736633451386,-500.0,0.00011915,2]
[348579874,1736633451396,-510.29,0.00011915,2]
[348579876,1736633451405,-153.603193,0.00011915,2]
[348579878,1736633451415,-1738.21,0.00011915,2]
[348579880,1736633451424,-695.24,0.00011915,2]
[348579882,1736633451435,-887.63,0.00011915,2]
[348579884,1736633451444,-596.13,0.00011915,2]
[348579886,1736633451454,-546.71,0.00011915,2]
[348579888,1736633451464,-500.0,0.00011915,2]
[348579890,1736633451473,-534.98,0.00011915,2]
[348579892,1736633451482,-151.996528,0.00011915,2]
[348579894,1736633451492,-1249.02,0.00011915,2]
[348579896,1736633451502,-964.0,0.00011915,2]
[348579898,1736633451512,-500.0,0.00011915,2]
[348579900,1736633451521,-500.0,0.00011915,2]
[348579902,1736633451531,-555.67,0.00011915,2]
[348579904,1736633451541,-500.0,0.00011915,2]
[348579906,1736633451551,-532.52,0.00011915,2]
[348579908,1736633451561,-500.0,0.00011915,2]
[348579910,1736633451571,-500.0,0.00011916,2]
[348579912,1736633451580,-500.0,0.00011916,2]
[348579914,1736633451589,-500.0,0.00011916,2]
[348579916,1736633451599,-1154.08,0.00011916,2]
[348579918,1736633451616,-530.94,0.00011916,2]
[348579920,1736633451626,-500.0,0.00011916,2]
[348579922,1736633451636,-500.0,0.00011916,2]
[348579925,1736633451647,-654.22,0.00011916,2]
[348579927,1736633451657,-500.0,0.00011916,2]
[348579929,1736633451666,-1149.21,0.00011916,2]
[348579931,1736633451676,-856.82,0.00011916,2]
[348579933,1736633451687,-500.0,0.00011916,2]
[348579934,1736633451697,-500.0,0.00011916,2]
[348579936,1736633451707,-500.0,0.00011916,2]
[348579938,1736633451717,-500.0,0.00011916,2]
[348579940,1736633451726,-500.0,0.00011917,2]
[348579942,1736633451735,-557.24,0.00011917,2]
[348579944,1736633451745,-500.0,0.00011917,2]
[348579946,1736633451755,-573.05,0.00011917,2]
[348579948,1736633451764,-500.0,0.00011917,2]